bitfinex/quotes_ETHUSD_20250904
["timestamp","ask_amount","ask_price","bid_price","bid_amount"]
[1756988138442,3.0,4433.5,4431.3,2.25666723]
[1756988138645,2.18157463,4433.6,4431.7,0.4659]
[1756988138974,0.1128,4432.6,4432.0,0.1128]
[1756988139347,0.099,4432.1,4431.3,4.082]
[1756988139673,2.2563686,4431.9,4431.4,0.1128]
[1756988139974,6.04627291,4431.9,4430.8,0.026]
[1756988140678,6.94744374,4431.9,4430.8,0.026]
[1756988141045,10.42904374,4431.9,4430.8,0.026]
[1756988141264,10.12727291,4431.9,4430.8,0.026]
[1756988141760,6.04627291,4431.9,4430.8,0.026]
[1756988141959,10.12627291,4431.9,4430.8,0.026]
[1756988142547,6.04547291,4431.9,4430.8,0.026]
[1756988142754,10.12547291,4431.9,4430.8,0.026]
[1756988144439,2.25652134,4431.6,4430.8,1e-08]
[1756988144644,20.18472416,4430.9,4430.8,1e-08]
[1756988144971,22.36129499,4430.9,4430.8,1e-08]
[1756988145146,25.84489499,4430.9,4430.8,1e-08]
[1756988145343,23.42763997,4430.9,4430.8,1e-08]
[1756988145670,12.87242281,4430.9,4430.8,1e-08]
[1756988145875,13.06902281,4430.9,4430.8,1e-08]
[1756988146074,2.25708159,4430.5,4429.8,0.025]
[1756988146274,19.39323362,4429.9,4429.8,0.025]
[1756988146472,25.65270445,4429.9,4429.8,0.025]
[1756988146889,25.84940445,4429.9,4429.8,0.025]
[1756988147088,0.792,4429.7,4427.8,0.025]
[1756988147294,3.0,4428.8,4427.8,0.025]
[1756988147601,2.35740691,4427.9,4427.8,0.025]
[1756988147760,9.44840691,4427.9,4427.8,0.025]
[1756988148070,9.44640691,4427.9,4427.8,0.025]
[1756988149620,9.64500691,4427.9,4427.8,0.025]
[1756988149762,24.97118639,4427.9,4427.8,0.025]
[1756988150531,25.76318639,4427.9,4427.8,1e-08]
[1756988150670,25.76318639,4427.9,4426.8,0.025]
[1756988150671,2.25891707,4426.9,4426.8,0.025]
[1756988150995,11.00691707,4426.9,4426.8,0.025]
[1756988151296,13.57432504,4426.9,4426.8,0.025]
[1756988151503,14.36632504,4426.9,4426.8,1e-08]
[1756988151707,2.25942746,4425.9,4424.8,0.025]
[1756988152018,11.00742746,4425.9,4424.9,0.4659]
[1756988152157,11.70454745,4425.9,4424.9,0.4659]
[1756988152358,5.36011999,4425.9,4424.9,0.4659]
[1756988152587,5.36011999,4425.9,4425.4,0.4659]
[1756988152588,6.92242746,4425.9,4425.4,0.4659]
[1756988152887,8.748,4425.9,4425.4,0.4659]
[1756988153095,11.29252746,4425.9,4424.8,0.025]
[1756988153294,11.30692746,4425.9,4424.8,0.025]
[1756988153591,11.68613562,4425.9,4424.8,0.025]
[1756988153798,3.0,4425.8,4424.8,0.025]
[1756988153996,2.25993807,4424.9,4424.8,0.025]
[1756988154194,22.4278844,4424.9,4424.8,0.025]
[1756988154408,21.3438844,4424.9,4424.8,0.025]
[1756988154578,25.4328844,4424.9,4424.8,0.025]
[1756988154780,26.39660054,4424.9,4424.8,0.025]
[1756988155108,26.39560054,4424.9,4424.8,0.025]
[1756988155408,12.25875421,4424.9,4424.8,0.025]
[1756988155708,4.663,4424.9,4424.8,0.025]
[1756988155914,8.75,4424.9,4424.8,0.025]
[1756988156213,4.663,4424.9,4424.8,0.025]
[1756988156511,4.663,4424.9,4424.8,0.777]
[1756988156692,1.664,4425.5,4424.8,0.777]
[1756988156895,4.086,4425.4,4424.8,0.777]
[1756988157092,0.1128,4424.9,4424.8,0.777]
[1756988157293,0.1128,4425.1,4424.8,1.3714]
[1756988157609,0.1128,4425.1,4424.9,0.4659]
[1756988158112,1.664,4425.5,4425.0,0.752]
[1756988158113,4.664,4425.5,4425.0,0.752]
[1756988158298,4.664,4425.5,4425.1,0.4659]
[1756988158299,1.664,4425.5,4425.1,0.4659]
[1756988158498,4.085,4425.6,4425.4,0.2861]
[1756988159016,3.1128,4425.5,4425.4,0.2861]
[1756988159212,3.1128,4425.5,4425.0,0.4659]
[1756988159508,0.1128,4425.2,4425.1,0.4659]
[1756988159810,0.1128,4425.2,4425.0,2.2598854]
[1756988160005,1.664,4426.2,4424.8,0.026]
[1756988160006,0.1128,4425.4,4425.1,0.5944]
[1756988160208,0.1128,4425.4,4425.2,0.4562]
[1756988160419,0.1128,4425.4,4425.1,0.2861]
[1756988160622,0.1128,4425.4,4425.2,0.4562]
[1756988160822,0.1128,4425.3,4425.2,1.0106]
[1756988160982,0.1128,4425.5,4425.4,2.25968274]
[1756988161177,0.1128,4425.5,4425.4,3.01238274]
[1756988161386,0.1128,4426.0,4425.5,2.25963168]
[1756988161609,0.1128,4426.0,4425.9,0.2965]
[1756988161979,0.1128,4426.0,4425.9,0.7527]
[1756988162712,0.1128,4426.0,4425.5,0.4562]
[1756988162888,0.1128,4426.0,4425.6,0.4562]
[1756988163090,0.1128,4426.0,4425.6,2.25957218]
[1756988163287,0.1128,4426.0,4425.7,0.4562]
[1756988163500,0.1128,4426.0,4425.9,0.2965]
[1756988163808,0.1128,4426.0,4425.1,4.078]
[1756988164010,0.1128,4425.7,4425.4,2.25968078]
[1756988164313,0.025,4426.8,4426.1,0.2965]
[1756988164494,0.1128,4426.4,4426.1,0.2965]
[1756988164691,0.1128,4426.4,4426.2,0.4562]
[1756988164899,0.1128,4426.4,4426.2,2.71546071]
[1756988165211,0.1128,4426.4,4426.3,3.01192327]
[1756988165406,0.025,4426.8,4426.3,0.7527]
[1756988165610,0.1128,4426.4,4426.3,0.7527]
[1756988165804,0.1128,4426.4,4425.8,0.569]
[1756988166012,0.1128,4426.0,4425.3,4.5272]
[1756988166213,0.1128,4425.7,4425.3,6.78691953]
[1756988166414,0.1128,4425.7,4425.6,0.2965]
[1756988166615,0.1128,4425.7,4425.4,0.4562]
[1756988167123,0.1128,4425.7,4425.0,0.4562]
[1756988167323,4.07,4425.9,4425.0,0.4562]
[1756988167324,0.1128,4425.3,4425.0,0.4562]
[1756988167489,0.1128,4425.3,4425.1,0.4562]
[1756988167687,0.099,4425.0,4424.8,0.026]
[1756988167916,0.3091,4424.9,4424.8,0.4822]
[1756988168084,3.0,4425.0,4424.8,0.4822]
[1756988168085,3.0,4425.0,4424.8,0.7787]
[1756988168285,2.25993807,4424.9,4424.8,0.026]
[1756988168522,3.0,4425.0,4424.8,0.026]
[1756988168723,0.4689,4426.7,4424.8,0.7787]
[1756988168914,7.46052687,4425.8,4424.9,0.4562]
[1756988169112,5.201,4425.8,4424.9,0.4562]
[1756988169727,1.664,4425.9,4425.7,0.2965]
[1756988169929,4.071,4426.1,4425.8,0.4562]
[1756988170221,3.0,4426.0,4425.9,0.4562]
[1756988170927,1.664,4427.6,4425.9,0.7527]
[1756988171226,1.803,4427.5,4426.0,0.792]
[1756988171401,1.803,4427.5,4426.7,2.25901913]
[1756988171724,4.803,4427.5,4426.7,2.55551913]
[1756988171931,4.803,4427.5,4426.0,0.4562]
[1756988172239,1.664,4427.6,4426.0,0.4562]
[1756988172240,4.094,4426.8,4426.0,0.4562]
[1756988172390,4.094,4426.8,4426.1,0.4562]
[1756988172595,6.35296849,4426.8,4426.1,0.4562]
[1756988172832,4.094,4426.8,4426.1,0.4562]
[1756988173336,0.025,4426.8,4426.1,0.4562]
[1756988173519,0.025,4426.8,4426.1,2.71548953]
[1756988173833,0.025,4426.8,4426.1,0.4562]
[1756988174043,0.025,4426.8,4426.7,0.2965]
[1756988174492,0.025,4426.8,4426.7,0.7527]
[1756988174696,0.025,4426.8,4426.7,3.01171913]
[1756988174891,0.025,4426.8,4426.7,3.56611913]
[1756988175314,0.025,4426.8,4426.7,4.55494158]
[1756988175691,0.025,4426.8,4426.7,5.36953177]
[1756988175901,0.025,4426.8,4426.7,5.34694158]
[1756988176410,0.025,4426.8,4426.7,9.40894158]
[1756988177041,0.025,4426.8,4426.7,8.34694158]
[1756988177214,0.025,4426.8,4426.7,12.40794158]
[1756988177416,0.025,4426.8,4426.7,8.34694158]
[1756988177721,0.025,4426.8,4426.7,8.45974158]
[1756988178063,0.025,4426.8,4426.7,12.51874158]
[1756988179022,0.025,4426.8,4426.7,7.01471913]
[1756988179230,0.025,4426.8,4426.7,11.52691913]
[1756988181243,0.025,4426.8,4426.7,7.47091913]
[1756988181739,0.025,4426.8,4426.7,7.17451913]
[1756988182316,0.025,4426.8,4426.7,0.1128]
[1756988182517,0.025,4426.8,4426.7,6.30301913]
[1756988182916,0.025,4426.8,4426.7,2.25901913]
[1756988183222,0.025,4426.8,4426.7,6.31101913]
[1756988183540,0.025,4426.8,4426.7,2.25901913]
[1756988183742,0.025,4426.8,4426.7,4.052]
[1756988183944,0.025,4426.8,4426.7,6.31101913]
[1756988184117,0.025,4426.8,4426.7,6.31001913]
[1756988184316,0.025,4426.8,4426.7,7.85471913]
[1756988184522,0.025,4426.8,4426.7,4.78471205]
[1756988184854,0.1378,4427.8,4426.7,8.83771205]
[1756988185022,0.1378,4427.8,4427.7,2.25850893]
[1756988185023,0.025,4427.8,4427.7,2.25850893]
[1756988185223,0.025,4427.8,4427.7,6.31050893]
[1756988185425,0.025,4427.8,4427.7,7.06320893]
[1756988185635,0.025,4427.8,4427.7,3.01120893]
[1756988185836,0.025,4427.8,4427.7,7.06520893]
[1756988186447,0.025,4427.8,4427.7,7.06420893]
[1756988186828,0.025,4427.8,4427.7,3.01120893]
[1756988187028,0.025,4427.8,4427.7,2.25850893]
[1756988187264,0.025,4427.8,4427.7,6.30750893]
[1756988187560,0.124,4427.8,4427.7,4.049]
[1756988187755,0.025,4427.8,4427.7,6.30750893]
[1756988188073,0.025,4427.8,4427.7,6.30650893]
[1756988188255,0.025,4427.8,4427.7,7.05920893]
[1756988188555,0.025,4427.8,4427.7,8.94938792]
[1756988188754,0.025,4427.8,4427.7,9.50378792]
[1756988189126,0.025,4427.8,4427.7,5.45578792]
[1756988189322,0.025,4427.8,4427.7,9.50278792]
[1756988191025,0.025,4427.8,4427.7,8.94838792]
[1756988191257,0.025,4427.8,4427.7,7.85020893]
[1756988191452,0.025,4427.8,4427.7,7.84420893]
[1756988192255,0.025,4427.8,4427.7,7.04920893]
[1756988192458,0.025,4427.8,4427.7,6.29650893]
[1756988193349,0.025,4427.8,4427.7,2.99720893]
[1756988193547,0.025,4427.8,4427.7,7.03420893]
[1756988193753,0.0242,4427.8,4427.7,7.03420893]
[1756988193949,0.0242,4427.8,4427.7,4.09288792]
[1756988194152,0.0242,4427.8,4427.7,7.39018792]
[1756988194457,0.0242,4427.8,4427.7,6.29450893]
[1756988194668,0.0242,4427.8,4427.7,7.03320893]
[1756988194957,0.0242,4427.8,4427.7,8.49220893]
[1756988195164,0.0242,4427.8,4427.7,8.49120893]
[1756988195579,0.0242,4427.8,4427.7,4.45620893]
[1756988195761,0.0242,4427.8,4427.7,9.32708792]
[1756988196163,0.0242,4427.8,4427.7,9.32508792]
[1756988196741,0.0242,4427.8,4427.7,8.77088792]
[1756988197178,0.0242,4427.8,4427.7,9.32508792]
[1756988197878,0.025,4428.8,4428.7,2.25799896]
[1756988198171,0.025,4428.8,4427.7,0.4062]
[1756988198334,0.099,4428.6,4427.7,2.37130518]
[1756988198533,0.002,4428.3,4427.8,6.28940776]
[1756988198880,0.1,4427.9,4427.8,2.25840776]
[1756988199051,0.1148,4428.3,4427.9,4.03]
[1756988199236,0.002,4428.3,4428.2,2.25825391]
[1756988199437,0.002,4428.3,4428.2,4.028]
[1756988199636,0.2891,4428.3,4428.2,4.028]
[1756988199851,0.2891,4428.3,4428.0,2.2583419]
[1756988200049,0.2891,4428.3,4428.1,4.028]
[1756988200253,0.3015,4428.3,4428.1,4.027]
[1756988200457,0.56874419,4428.3,4428.1,4.027]
[1756988200772,0.1252,4428.2,4427.6,1.664]
[1756988200956,0.1252,4428.2,4427.3,0.1128]
[1756988200957,0.1128,4427.9,4427.3,0.1128]
[1756988201145,0.1128,4427.9,4427.7,2.2585048]
[1756988201347,0.1128,4427.9,4427.8,4.025]
[1756988201674,0.099,4427.8,4427.6,4.024]
[1756988202039,0.099,4427.8,4427.6,4.023]
[1756988202239,0.1128,4427.9,4427.6,6.28155137]
[1756988202465,0.1128,4427.9,4427.6,4.023]
[1756988202670,0.1128,4427.9,4427.5,2.25860611]
[1756988202858,0.1128,4427.9,4427.7,4.023]
[1756988203172,0.1128,4427.9,4427.7,4.021]
[1756988204361,0.099,4427.8,4427.3,0.1128]
[1756988204675,0.099,4427.8,4427.4,4.021]
[1756988204876,0.099,4427.8,4427.4,2.25864604]
[1756988205168,0.099,4427.8,4427.2,1.664]
[1756988205169,0.1128,4428.2,4427.7,0.2934]
[1756988205373,0.002,4428.3,4427.9,2.25836377]
[1756988205680,0.002,4428.3,4428.0,4.016]
[1756988206052,0.002,4428.3,4428.2,2.25825391]
[1756988206555,0.2891,4428.3,4428.2,4.015]
[1756988206735,0.78091637,4428.3,4427.9,4.014]
[1756988207174,0.1128,4428.1,4427.9,4.014]
[1756988207473,0.1128,4428.1,4427.9,6.27238278]
[1756988207661,0.002,4428.3,4428.0,2.99705591]
[1756988207864,0.002,4428.3,4428.2,2.25825391]
[1756988208040,0.002,4428.3,4428.2,6.27225391]
[1756988208245,0.002,4428.3,4428.2,7.56515391]
[1756988208970,0.002,4428.3,4428.2,8.35715391]
[1756988209177,0.002,4428.3,4428.2,7.80295391]
[1756988209353,0.002,4428.3,4428.2,7.00895391]
[1756988210251,0.002,4428.3,4428.2,7.00795391]
[1756988210455,0.002,4428.3,4428.2,6.26925391]
[1756988210651,0.002,4428.3,4428.2,2.55165391]
[1756988210875,0.025,4428.8,4428.7,3.04999896]
[1756988211056,0.025,4428.8,4428.7,7.05999896]
[1756988211257,0.025,4428.8,4428.7,7.79869896]
[1756988211661,0.025,4428.8,4428.7,8.35289896]
[1756988211858,0.025,4428.8,4428.7,4.34289896]
[1756988212057,0.025,4428.8,4428.7,7.80069896]
[1756988212239,0.025,4428.8,4428.7,9.36077593]
[1756988212652,0.025,4428.8,4428.7,8.35489896]
[1756988214079,0.025,4428.8,4428.7,6.26399896]
[1756988214948,0.3093,4428.8,4428.4,2.25810193]
[1756988215146,0.0171,4428.7,4427.5,2.25857439]
[1756988215445,0.25843877,4428.6,4427.3,4.005]
[1756988215645,0.0171,4428.7,4427.3,4.005]
[1756988215879,0.0171,4428.7,4427.3,6.26370301]
[1756988216090,0.2016,4428.6,4427.3,2.25870301]
[1756988216285,2.25831491,4428.1,4427.4,4.016]
[1756988216986,2.4597187,4428.5,4427.4,4.016]
[1756988217167,2.25822701,4428.3,4427.4,6.27461747]
[1756988217564,2.25822701,4428.3,4427.5,2.25861007]
[1756988217774,0.24597187,4428.4,4427.4,4.013]
[1756988217775,0.1128,4427.8,4427.4,4.013]
[1756988218087,0.1128,4427.8,4427.4,6.27164919]
[1756988218392,0.1128,4427.8,4427.5,2.25860333]
[1756988218592,0.1128,4427.8,4427.4,4.013]
[1756988218756,0.0982,4427.5,4427.3,0.001]
[1756988219153,2.37146196,4427.4,4427.3,0.001]
[1756988219385,3.11902816,4427.4,4427.3,0.001]
[1756988219585,6.21822816,4427.4,4427.3,0.001]
[1756988220261,6.75722816,4427.4,4427.3,0.001]
[1756988220483,6.21822816,4427.4,4427.3,0.001]
[1756988220984,10.22622816,4427.4,4427.3,0.001]
[1756988221153,10.76522816,4427.4,4427.3,0.001]
[1756988221594,11.14109011,4427.4,4427.3,0.001]
[1756988221763,11.93309011,4427.4,4427.3,0.001]
[1756988223225,7.54822816,4427.4,4427.3,0.001]
[1756988223406,11.55422816,4427.4,4427.3,0.001]
[1756988223915,11.91981884,4427.4,4427.3,0.001]
[1756988224119,12.25809691,4427.4,4427.3,0.001]
[1756988224318,10.22222816,4427.4,4427.3,0.001]
[1756988224505,10.22322816,4427.4,4427.3,0.001]
[1756988224682,10.02362816,4427.4,4427.3,0.001]
[1756988225117,6.01762816,4427.4,4427.3,0.001]
[1756988225642,0.5469662,4427.4,4427.3,0.001]
[1756988225823,0.1128,4427.4,4427.3,0.001]
[1756988225999,7.1178,4427.4,4427.3,0.001]
[1756988226198,3.1128,4427.4,4427.3,0.001]
[1756988226411,0.1128,4427.4,4427.3,0.7305]
[1756988226917,0.1128,4427.4,4427.3,1.2587]
[1756988227117,0.1128,4427.4,4427.3,0.001]
[1756988227418,0.29048,4427.4,4427.3,0.001]
[1756988227624,5.64814196,4427.4,4427.3,0.001]
[1756988228299,3.1128,4427.4,4427.3,0.001]
[1756988228494,5.37146196,4427.4,4427.3,0.001]
[1756988228694,5.47046196,4427.4,4427.3,0.001]
[1756988229231,9.37346196,4427.4,4427.3,0.001]
[1756988229444,9.47346196,4427.4,4427.3,0.001]
[1756988229630,11.0118653,4427.4,4427.3,0.001]
[1756988229941,6.8110653,4427.4,4427.3,0.001]
[1756988230142,10.6012653,4427.4,4427.3,0.001]
[1756988230302,6.7110653,4427.4,4427.3,0.001]
[1756988230502,10.7140653,4427.4,4427.3,0.001]
[1756988231840,6.7110653,4427.4,4427.3,0.001]
[1756988232056,4.45240334,4427.4,4427.3,0.001]
[1756988232206,0.1128,4427.4,4427.3,1.2587]
[1756988232512,2.66366196,4427.4,4427.3,0.001]
[1756988232903,5.66366196,4427.4,4427.3,0.001]
[1756988233157,7.022287,4427.4,4427.3,0.001]
[1756988233446,6.730087,4427.4,4427.3,0.001]
[1756988235315,7.019487,4427.4,4427.3,0.001]
[1756988236352,10.725087,4427.4,4427.3,0.001]
[1756988237033,6.730087,4427.4,4427.3,0.001]
[1756988237233,10.725087,4427.4,4427.3,0.001]
[1756988237748,10.722087,4427.4,4427.3,0.001]
[1756988238171,10.821087,4427.4,4427.3,0.001]
[1756988239018,10.722087,4427.4,4427.3,0.001]
[1756988241067,6.730087,4427.4,4427.3,0.2945]
[1756988241374,10.721087,4427.4,4427.3,0.001]
[1756988241539,11.013287,4427.4,4427.3,0.001]
[1756988243339,10.721087,4427.4,4427.3,0.001]
[1756988243545,6.730087,4427.4,4427.3,0.001]
[1756988243744,10.716087,4427.4,4427.3,0.001]
[1756988243964,6.730087,4427.4,4427.3,0.2945]
[1756988244167,8.45442504,4427.4,4427.3,0.2945]
[1756988244338,8.45362504,4427.4,4427.3,0.7305]
[1756988244667,10.712287,4427.4,4427.3,0.001]
[1756988245175,11.004487,4427.4,4427.3,0.001]
[1756988246076,10.712287,4427.4,4427.3,0.001]
[1756988246375,4.47062504,4427.4,4427.3,0.2945]
[1756988246576,9.35166196,4427.4,4427.3,0.7305]
[1756988246786,5.37066196,4427.4,4427.3,0.2945]
[1756988246951,9.44866196,4427.4,4427.3,0.001]
[1756988248071,11.31174003,4427.4,4426.9,0.001]
[1756988248280,19.54008742,4427.0,4426.9,0.001]
[1756988248481,23.51908742,4427.0,4426.9,0.001]
[1756988248682,23.61908742,4427.0,4426.9,0.001]
[1756988248898,0.792,4426.5,4424.8,0.026]
[1756988249090,2.25937641,4426.0,4425.0,0.436]
[1756988249378,2.25937641,4426.0,4425.3,0.436]
[1756988249379,10.99800724,4425.9,4425.3,0.436]
[1756988250466,11.29360724,4425.9,4425.3,0.436]
[1756988250673,11.29360724,4425.9,4424.9,0.4685]
[1756988251276,10.99800724,4425.9,4425.3,0.4685]
[1756988251466,11.09700724,4425.9,4425.3,0.4685]
[1756988251785,11.09700724,4425.9,4424.8,0.026]
[1756988252025,19.42835945,4424.9,4424.8,0.026]
[1756988252285,19.42835945,4424.9,4424.4,0.001]
[1756988252286,3.05214238,4424.5,4424.4,0.001]
[1756988252475,10.50372863,4424.5,4424.4,0.001]
[1756988252671,3.05227187,4424.3,4424.0,100.0]
[1756988252870,20.32176811,4424.1,4424.0,100.0]
[1756988253070,22.23173998,4424.1,4424.0,100.0]
[1756988253565,23.12940098,4424.1,4424.0,61.33602623]
[1756988253760,23.46767905,4424.1,4424.0,61.33502623]
[1756988254355,26.38760098,4424.1,4424.0,61.33502623]
[1756988254560,25.32773998,4424.1,4424.0,61.33502623]
[1756988254882,21.33873998,4424.1,4424.0,61.33502623]
[1756988255062,11.1583186,4424.1,4424.0,61.33502623]
[1756988255262,11.2603186,4424.1,4424.0,61.33502623]
[1756988255466,7.1703186,4424.1,4424.0,61.33502623]
[1756988255658,26.22073998,4424.1,4424.0,61.33502623]
[1756988256079,26.95053998,4424.1,4424.0,55.40479765]
[1756988256281,26.21973998,4424.1,4424.0,55.40479765]
[1756988256763,26.94953998,4424.1,4424.0,55.40479765]
[1756988256963,22.96253998,4424.1,4424.0,49.47456907]
[1756988257167,22.23273998,4424.1,4424.0,49.47456907]
[1756988257483,26.21873998,4424.1,4424.0,49.47456907]
[1756988258784,26.21773998,4424.1,4424.0,49.47456907]
[1756988258955,21.44073998,4424.1,4424.0,49.47456907]
[1756988259284,7.90734673,4424.1,4424.0,49.76116907]
[1756988259492,2.26034673,4424.1,4424.0,50.22966907]
[1756988259732,2.26014238,4424.5,4424.0,50.00246907]
[1756988260016,2.35934673,4424.1,4424.0,49.47456907]
[1756988260206,10.13534673,4424.1,4424.0,49.47456907]
[1756988262191,10.24814673,4424.1,4424.0,49.47456907]
[1756988262598,6.16514673,4424.1,4424.0,49.47456907]
[1756988262794,11.67440036,4424.1,4424.0,49.47456907]
[1756988263424,11.67240036,4424.1,4424.0,49.47456907]
[1756988263720,6.89940036,4424.1,4424.0,49.47456907]
[1756988263920,6.89940036,4424.1,4424.0,50.22966907]
[1756988263921,10.88040036,4424.1,4424.0,50.22966907]
[1756988264416,10.88040036,4424.1,4424.0,49.47456907]
[1756988264803,10.88040036,4424.1,4424.0,49.94306907]
[1756988265004,10.88040036,4424.1,4424.0,49.47456907]
[1756988265407,0.025,4425.8,4424.0,50.75756907]
[1756988265606,0.791,4425.3,4424.1,1.01900346]
[1756988265841,0.791,4425.2,4424.2,0.9964]
[1756988266103,0.791,4425.2,4424.3,0.9964]
[1756988266336,2.25983593,4425.1,4424.4,0.4685]
[1756988266503,5.25994672,4424.9,4424.4,0.4685]
[1756988266705,4.0,4424.8,4424.5,0.5279]
[1756988266902,4.0,4424.8,4424.0,55.73496092]
[1756988267090,4.0,4424.8,4424.7,0.2866]
[1756988267512,2.27006325,4425.2,4424.7,1.283]
[1756988267718,3.0,4425.0,4424.8,0.9964]
[1756988268021,6.999,4425.1,4424.8,0.9964]
[1756988268022,6.998,4424.9,4424.8,0.9964]
[1756988268224,6.998,4424.9,4424.0,53.47456907]
[1756988268434,6.998,4424.9,4424.8,0.2866]
[1756988269028,6.998,4424.9,4424.8,1.283]
[1756988269916,6.9972,4424.9,4424.8,1.283]
[1756988270134,6.9972,4424.9,4424.8,0.8145]
[1756988270324,10.12335807,4424.9,4424.8,0.2866]
[1756988270932,2.26001223,4424.8,4424.5,0.4685]
[1756988271122,3.992,4424.7,4424.5,0.4685]
[1756988271321,2.26023752,4424.4,4424.0,49.47456907]
[1756988271626,3.992,4424.3,4424.1,0.4685]
[1756988271825,0.86622,4424.9,4424.1,0.4685]
[1756988271826,6.25229564,4424.2,4424.1,0.4685]
[1756988272027,2.26034673,4424.1,4424.0,49.47456907]
[1756988272409,5.26034673,4424.1,4424.0,49.47456907]
[1756988272606,6.57810825,4424.1,4424.0,49.47456907]
[1756988274026,6.67710825,4424.1,4424.0,49.47456907]
[1756988275410,7.58190825,4424.1,4424.0,49.47456907]
[1756988275610,8.43120825,4424.1,4424.0,49.47456907]
[1756988277298,11.46990825,4424.1,4424.0,49.47456907]
[1756988277913,7.48290825,4424.1,4424.0,49.47456907]
[1756988278114,11.57000825,4424.1,4424.0,49.47456907]
[1756988279031,11.57000825,4424.1,4423.6,0.004]
[1756988279032,5.26039783,4424.0,4423.6,0.004]
[1756988279235,0.9048,4423.7,4423.6,0.004]
[1756988279424,10.25155112,4423.7,4423.6,0.004]
[1756988279625,10.78945112,4423.7,4423.6,0.004]
[1756988280015,10.25155112,4423.7,4423.6,0.004]
[1756988280214,3.05275554,4423.3,4422.2,0.004]
[1756988280514,12.41683109,4423.3,4422.2,0.004]
[1756988280704,12.52203109,4423.3,4422.2,0.004]
[1756988281107,13.24513109,4423.3,4422.2,0.004]
[1756988281629,13.55043109,4423.3,4422.2,0.004]
[1756988281834,13.24513109,4423.3,4422.2,0.004]
[1756988283215,12.52303109,4423.3,4422.2,0.004]
[1756988284147,12.69462462,4423.3,4422.2,0.004]
[1756988284334,13.41672462,4423.3,4422.2,0.004]
[1756988284931,6.05296,4422.9,4422.2,0.004]
[1756988285134,11.09615426,4422.9,4422.2,0.004]
[1756988285440,5.26101112,4422.8,4422.2,0.004]
[1756988285642,7.07831112,4422.8,4422.2,0.004]
[1756988285862,6.88431112,4422.8,4422.2,0.004]
[1756988286246,6.05306224,4422.7,4422.6,1e-08]
[1756988286438,6.05306224,4422.7,4422.2,0.004]
[1756988286439,3.05326676,4422.3,4422.2,1e-08]
[1756988286748,11.91616676,4422.3,4422.2,1e-08]
[1756988288261,10.377,4422.3,4420.8,0.025]
[1756988288430,3.05398285,4420.9,4420.8,0.025]
[1756988288620,11.80578285,4420.9,4420.8,0.025]
[1756988288953,11.90478285,4420.9,4420.8,0.025]
[1756988289151,12.07579013,4420.9,4420.8,0.025]
[1756988289449,12.91837493,4420.9,4420.8,0.025]
[1756988290224,8.94537493,4420.9,4420.8,0.025]
[1756988290557,12.81737493,4420.9,4420.8,0.025]
[1756988291219,7.88336765,4420.9,4420.8,1.0633]
[1756988291420,7.88336765,4420.9,4420.8,0.3405]
[1756988291421,11.85936765,4420.9,4420.8,0.3405]
[1756988291621,12.65136765,4420.9,4420.8,0.025]
[1756988291821,12.91998214,4420.9,4420.8,0.025]
[1756988292360,13.95348214,4420.9,4420.8,1e-08]
[1756988292653,6.05449462,4419.9,4419.8,0.025]
[1756988292858,11.69749462,4419.9,4419.8,0.025]
[1756988293148,7.72049462,4419.9,4419.8,0.025]
[1756988293336,11.69649462,4419.9,4419.8,0.8008]
[1756988293827,11.69649462,4419.9,4419.8,0.025]
[1756988294026,13.01425614,4419.9,4419.8,0.025]
[1756988294455,9.03825614,4419.9,4419.8,0.3405]
[1756988294653,6.92849462,4419.9,4419.8,1.5236]
[1756988294852,10.90249462,4419.9,4419.8,1.5236]
[1756988295024,10.90169462,4419.9,4419.8,1.5236]
[1756988296354,6.92769462,4419.9,4419.8,1.5236]
[1756988296558,8.6402,4419.9,4419.8,1.5236]
[1756988296754,8.6372,4419.9,4419.8,1.5236]
[1756988296958,4.6652,4419.9,4419.8,1.5236]
[1756988297159,5.637,4419.9,4419.8,1.5236]
[1756988297363,5.637,4419.9,4419.8,1.67596]
[1756988297569,5.209,4421.3,4419.8,1.67596]
[1756988297728,1.667,4421.2,4419.9,1.1831]
[1756988297929,2.2620466,4420.8,4420.0,1.1831]
[1756988298160,2.26199503,4420.9,4420.7,0.3155]
[1756988298375,3.971,4420.8,4420.7,0.3155]
[1756988298536,3.97,4420.8,4420.7,0.3155]
[1756988298745,1.667,4421.3,4420.7,0.3155]
[1756988298940,3.969,4421.2,4420.8,1.1831]
[1756988299268,1.667,4421.3,4421.1,0.3155]
[1756988299439,4.0818,4421.2,4421.1,0.3155]
[1756988300162,7.0818,4421.2,4421.1,1.4986]
[1756988300375,7.0818,4421.2,4420.6,0.4603]
[1756988300376,3.0,4421.1,4420.6,0.4603]
[1756988300536,2.37488519,4420.7,4420.6,0.4603]
[1756988300741,9.34288519,4420.7,4420.6,0.4603]
[1756988301337,9.34288519,4420.7,4420.6,0.7758]
[1756988303774,5.37488519,4420.7,4420.6,0.7758]
[1756988304078,7.0748,4420.7,4420.6,1.4986]
[1756988304286,4.0748,4420.7,4420.6,1.4986]
[1756988304488,1.667,4421.3,4420.8,2.26202008]
[1756988304638,3.963,4421.2,4420.9,1.1831]
[1756988304843,6.963,4421.2,4421.1,0.3155]
[1756988305066,6.963,4421.2,4421.1,1.4986]
[1756988305270,7.0758,4421.2,4421.1,1.4986]
[1756988306377,0.1128,4421.2,4421.1,1.4986]